[Event "Late-Titled-Tuesday-Blitz-March-26-2024"]
[Site "Chess.com"]
[Date "2024.03.26"]
[Round "10"]
[White "Romkachess"]
[Black "m_ezat"]
[Result "1-0"]
[WhiteElo "2680"]
[BlackElo "2552"]
[TimeControl "180+1"]
[EndTime "15:53:56 PDT"]
[Termination "Romkachess won by checkmate"]

1. e4 {[%clk 0:02:56.6]} 1... e5 {[%clk 0:02:42.9]} 2. d4 {[%clk 0:02:56.2]}
2... exd4 {[%clk 0:02:42.5]} 3. Qxd4 {[%clk 0:02:56]} 3... Nc6 {[%clk
0:02:42.2]} 4. Qe3 {[%clk 0:02:56.5]} 4... Nf6 {[%clk 0:02:42.4]} 5. Nc3 {[%clk
0:02:56.6]} 5... Bb4 {[%clk 0:02:43]} 6. Bd2 {[%clk 0:02:56.8]} 6... O-O {[%clk
0:02:43.3]} 7. O-O-O {[%clk 0:02:57.3]} 7... Re8 {[%clk 0:02:44]} 8. Qg3 {[%clk
0:02:57.5]} 8... Nxe4 {[%clk 0:02:39.8]} 9. Nxe4 {[%clk 0:02:57]} 9... Rxe4
{[%clk 0:02:39.7]} 10. c3 {[%clk 0:02:56.8]} 10... Be7 {[%clk 0:02:34.8]} 11.
Bd3 {[%clk 0:02:55.7]} 11... Bh4 {[%clk 0:02:24.6]} 12. Qf3 {[%clk 0:02:44.3]}
12... Re8 {[%clk 0:02:24.1]} 13. Qh5 {[%clk 0:02:31.6]} 13... g6 {[%clk
0:02:21.7]} 14. Qh6 {[%clk 0:02:32.2]} 14... Ne5 {[%clk 0:02:15.6]} 15. Be2
{[%clk 0:02:32.3]} 15... d6 {[%clk 0:02:11.3]} 16. h3 {[%clk 0:02:10.4]} 16...
Bf6 {[%clk 0:02:06.8]} 17. Nf3 {[%clk 0:02:03.5]} 17... Bg7 {[%clk 0:02:03.6]}
18. Qf4 {[%clk 0:02:01.1]} 18... Qf6 {[%clk 0:01:58.7]} 19. Qg3 {[%clk
0:01:55.9]} 19... Bf5 {[%clk 0:01:56.2]} 20. Bg5 {[%clk 0:01:51.7]} 20... Qe6
{[%clk 0:01:54.3]} 21. Nd4 {[%clk 0:01:50.3]} 21... Qd7 {[%clk 0:01:48.2]} 22.
h4 {[%clk 0:01:41.6]} 22... h5 {[%clk 0:01:44.5]} 23. Rhe1 {[%clk 0:01:27.3]}
23... Bg4 {[%clk 0:01:27.7]} 24. f3 {[%clk 0:01:25.7]} 24... Bf5 {[%clk
0:01:28.3]} 25. f4 {[%clk 0:01:04.7]} 25... Ng4 {[%clk 0:01:24.4]} 26. Nxf5
{[%clk 0:01:04.5]} 26... Qxf5 {[%clk 0:01:23.8]} 27. Bd3 {[%clk 0:01:05.2]}
27... Qa5 {[%clk 0:01:20.9]} 28. f5 {[%clk 0:00:59.1]} 28... Be5 {[%clk
0:00:50.8]} 29. Qf3 {[%clk 0:00:54.3]} 29... Bxc3 {[%clk 0:00:44.4]} 30. Rxe8+
{[%clk 0:00:48.5]} 30... Rxe8 {[%clk 0:00:41.6]} 31. fxg6 {[%clk 0:00:49.1]}
31... Bxb2+ {[%clk 0:00:29.8]} 32. Kb1 {[%clk 0:00:37.6]} 32... f6 {[%clk
0:00:18.5]} 33. Bc4+ {[%clk 0:00:30.9]} 33... Kg7 {[%clk 0:00:18.1]} 34. Kxb2
{[%clk 0:00:31.1]} 34... Qb4+ {[%clk 0:00:09.6]} 35. Bb3 {[%clk 0:00:31.5]}
35... Ne5 {[%clk 0:00:08.7]} 36. Qxf6# {[%clk 0:00:30.6]} 1-0

[Event "Late-Titled-Tuesday-Blitz-March-26-2024"]
[Site "Chess.com"]
[Date "2024.03.26"]
[Round "10"]
[White "cakeuvdort"]
[Black "Flaccidmoves"]
[Result "0-1"]
[WhiteElo "2246"]
[BlackElo "2446"]
[TimeControl "180+1"]
[EndTime "15:53:57 PDT"]
[Termination "Flaccidmoves won on time"]

1. Nf3 {[%clk 0:01:47.3]} 1... d5 {[%clk 0:02:58.4]} 2. e3 {[%clk 0:01:47.6]}
2... Nf6 {[%clk 0:02:56.2]} 3. b3 {[%clk 0:01:47.9]} 3... Bg4 {[%clk 0:02:55.1]}
4. Bb2 {[%clk 0:01:45.2]} 4... e6 {[%clk 0:02:54.5]} 5. h3 {[%clk 0:01:44.5]}
5... Bxf3 {[%clk 0:02:52.4]} 6. Qxf3 {[%clk 0:01:44.6]} 6... Bd6 {[%clk
0:02:52.7]} 7. d3 {[%clk 0:01:44.2]} 7... O-O {[%clk 0:02:52.2]} 8. Nd2 {[%clk
0:01:44.6]} 8... e5 {[%clk 0:02:48.9]} 9. Qe2 {[%clk 0:01:43.2]} 9... c5 {[%clk
0:02:47.8]} 10. g3 {[%clk 0:01:43.2]} 10... Nc6 {[%clk 0:02:44.4]} 11. Bg2
{[%clk 0:01:42.7]} 11... Re8 {[%clk 0:02:44.1]} 12. e4 {[%clk 0:01:42.4]} 12...
Nd4 {[%clk 0:02:43]} 13. Qd1 {[%clk 0:01:35.7]} 13... Bc7 {[%clk 0:02:37.2]} 14.
O-O {[%clk 0:01:35.3]} 14... Qd7 {[%clk 0:02:26.9]} 15. Re1 {[%clk 0:01:17.2]}
15... Rad8 {[%clk 0:02:25.1]} 16. c3 {[%clk 0:00:47.3]} 16... Nc6 {[%clk
0:02:24.6]} 17. Qe2 {[%clk 0:00:45]} 17... dxe4 {[%clk 0:02:19.9]} 18. Nxe4
{[%clk 0:00:37.9]} 18... Qxd3 {[%clk 0:02:19.6]} 19. Nxc5 {[%clk 0:00:36.4]}
19... Qxe2 {[%clk 0:02:10.2]} 20. Rxe2 {[%clk 0:00:36.5]} 20... e4 {[%clk
0:01:54.4]} 21. Nxb7 {[%clk 0:00:35.9]} 21... Rb8 {[%clk 0:01:48.9]} 22. Nc5
{[%clk 0:00:35.3]} 22... e3 {[%clk 0:01:43.5]} 23. Bxc6 {[%clk 0:00:22.5]} 23...
exf2+ {[%clk 0:01:43.7]} 24. Kxf2 {[%clk 0:00:14.3]} 24... Bxg3+ {[%clk
0:01:44.4]} 25. Kf1 {[%clk 0:00:14.9]} 25... Rxe2 {[%clk 0:01:31.2]} 26. Kxe2
{[%clk 0:00:14.8]} 26... Rc8 {[%clk 0:01:27.8]} 27. b4 {[%clk 0:00:08.8]} 27...
Rxc6 {[%clk 0:01:26.8]} 28. Rg1 {[%clk 0:00:08.5]} 28... Be5 {[%clk 0:01:23.1]}
29. Nd3 {[%clk 0:00:08.4]} 29... Bxc3 {[%clk 0:01:19.9]} 30. Bxc3 {[%clk
0:00:07.8]} 30... Rxc3 {[%clk 0:01:19.7]} 31. Rb1 {[%clk 0:00:07.6]} 31... Rc2+
{[%clk 0:01:19.1]} 32. Ke3 {[%clk 0:00:06.4]} 32... Rxa2 {[%clk 0:01:19.8]} 33.
Nc5 {[%clk 0:00:06.1]} 33... g5 {[%clk 0:01:18.9]} 34. Rg1 {[%clk 0:00:05.9]}
34... h6 {[%clk 0:01:18.5]} 35. h4 {[%clk 0:00:06.6]} 35... g4 {[%clk
0:01:18.7]} 36. Ne4 {[%clk 0:00:06.7]} 36... Nxe4 {[%clk 0:01:17.7]} 37. Rxg4+
{[%clk 0:00:07.1]} 37... Kf8 {[%clk 0:01:17]} 38. Kxe4 {[%clk 0:00:07.3]} 38...
Rf2 {[%clk 0:01:15]} 39. Kd5 {[%clk 0:00:07.4]} 39... Rf6 {[%clk 0:01:13.8]} 40.
Kc5 {[%clk 0:00:06.6]} 40... Rb6 {[%clk 0:01:13.8]} 41. b5 {[%clk 0:00:06]}
41... f5 {[%clk 0:01:13.7]} 42. Ra4 {[%clk 0:00:06.1]} 42... Rb7 {[%clk
0:01:12.3]} 43. Kc6 {[%clk 0:00:05.7]} 43... Rf7 {[%clk 0:01:12.8]} 44. Rf4
{[%clk 0:00:05]} 44... Kg7 {[%clk 0:01:12.4]} 45. b6 {[%clk 0:00:05.3]} 45...
Rf6+ {[%clk 0:01:10.4]} 46. Kc5 {[%clk 0:00:04.8]} 46... axb6+ {[%clk
0:01:10.8]} 47. Kd5 {[%clk 0:00:03.7]} 47... Kg6 {[%clk 0:01:11]} 48. Ke5 {[%clk
0:00:02.8]} 48... Rf8 {[%clk 0:01:11.2]} 49. Kd5 {[%clk 0:00:01.7]} 49... Rb8
{[%clk 0:01:07.1]} 0-1

[Event "Late-Titled-Tuesday-Blitz-March-26-2024"]
[Site "Chess.com"]
[Date "2024.03.26"]
[Round "10"]
[White "Veleamater"]
[Black "ATM622"]
[Result "1-0"]
[WhiteElo "2418"]
[BlackElo "2504"]
[TimeControl "180+1"]
[EndTime "15:53:59 PDT"]
[Termination "Veleamater won by checkmate"]

1. g3 {[%clk 0:03:00.9]} 1... Nf6 {[%clk 0:02:58.1]} 2. Bg2 {[%clk 0:03:00.4]}
2... g6 {[%clk 0:02:58.4]} 3. d3 {[%clk 0:02:54.4]} 3... Bg7 {[%clk 0:02:58.1]}
4. Nf3 {[%clk 0:02:52.4]} 4... O-O {[%clk 0:02:56.9]} 5. O-O {[%clk 0:02:53]}
5... d5 {[%clk 0:02:56]} 6. h3 {[%clk 0:02:51.3]} 6... c5 {[%clk 0:02:55.9]} 7.
Nc3 {[%clk 0:02:50.8]} 7... Nc6 {[%clk 0:02:56.1]} 8. e4 {[%clk 0:02:50.5]} 8...
e5 {[%clk 0:02:50.9]} 9. Nd2 {[%clk 0:02:48.9]} 9... d4 {[%clk 0:02:47.4]} 10.
Ne2 {[%clk 0:02:48.6]} 10... Nh5 {[%clk 0:02:45.3]} 11. f4 {[%clk 0:02:47.7]}
11... f5 {[%clk 0:02:43.5]} 12. exf5 {[%clk 0:02:47.8]} 12... gxf5 {[%clk
0:02:40]} 13. fxe5 {[%clk 0:02:47.3]} 13... Nxe5 {[%clk 0:02:36]} 14. Nf3 {[%clk
0:02:47.3]} 14... Be6 {[%clk 0:02:21.9]} 15. Nxe5 {[%clk 0:02:44.2]} 15... Bxe5
{[%clk 0:02:21.7]} 16. Nf4 {[%clk 0:02:43.9]} 16... Nxf4 {[%clk 0:02:07.4]} 17.
Bxf4 {[%clk 0:02:41.2]} 17... Bxf4 {[%clk 0:01:57.4]} 18. Rxf4 {[%clk
0:02:40.6]} 18... Bd5 {[%clk 0:01:57.8]} 19. Bxd5+ {[%clk 0:02:36.5]} 19... Qxd5
{[%clk 0:01:57.2]} 20. Qh5 {[%clk 0:02:35.9]} 20... Rae8 {[%clk 0:01:53.2]} 21.
Raf1 {[%clk 0:02:35.2]} 21... Qe5 {[%clk 0:01:48.6]} 22. Qf3 {[%clk 0:02:12.3]}
22... Re7 {[%clk 0:01:26.9]} 23. Rxf5 {[%clk 0:02:05.6]} 23... Rxf5 {[%clk
0:01:25.8]} 24. Qxf5 {[%clk 0:02:05.4]} 24... Qxf5 {[%clk 0:01:09.6]} 25. Rxf5
{[%clk 0:02:04.6]} 25... b6 {[%clk 0:01:03.6]} 26. Kf2 {[%clk 0:02:04]} 26...
Kg7 {[%clk 0:01:02.8]} 27. b4 {[%clk 0:02:01.7]} 27... Kg6 {[%clk 0:00:58.9]}
28. Rf4 {[%clk 0:01:57.4]} 28... Rc7 {[%clk 0:00:55]} 29. b5 {[%clk 0:01:57.6]}
29... Re7 {[%clk 0:00:50.9]} 30. h4 {[%clk 0:01:55.2]} 30... h5 {[%clk
0:00:48.3]} 31. Rf8 {[%clk 0:01:51.6]} 31... Kg7 {[%clk 0:00:45.2]} 32. Rf5
{[%clk 0:01:50.8]} 32... Kg6 {[%clk 0:00:44.4]} 33. Rg5+ {[%clk 0:01:50.9]}
33... Kh6 {[%clk 0:00:43.6]} 34. a4 {[%clk 0:01:50.5]} 34... Rf7+ {[%clk
0:00:41.3]} 35. Kg2 {[%clk 0:01:48.2]} 35... Re7 {[%clk 0:00:41.4]} 36. Rf5
{[%clk 0:01:48.3]} 36... Kg6 {[%clk 0:00:41.3]} 37. Rf4 {[%clk 0:01:46]} 37...
Re1 {[%clk 0:00:38.1]} 38. Re4 {[%clk 0:01:43.4]} 38... Ra1 {[%clk 0:00:36.2]}
39. Re6+ {[%clk 0:01:35.1]} 39... Kf5 {[%clk 0:00:31.9]} 40. Rh6 {[%clk
0:01:33.9]} 40... Rxa4 {[%clk 0:00:25.8]} 41. Rxh5+ {[%clk 0:01:33.4]} 41... Kg6
{[%clk 0:00:23.8]} 42. Rg5+ {[%clk 0:01:33]} 42... Kf6 {[%clk 0:00:24.1]} 43.
Rd5 {[%clk 0:01:27.5]} 43... Ra2 {[%clk 0:00:20]} 44. g4 {[%clk 0:01:27.3]}
44... Rxc2+ {[%clk 0:00:19.5]} 45. Kf3 {[%clk 0:01:27.4]} 45... Rb2 {[%clk
0:00:11.1]} 46. g5+ {[%clk 0:01:27.7]} 46... Ke6 {[%clk 0:00:10.2]} 47. Rd8
{[%clk 0:01:26.7]} 47... Rxb5 {[%clk 0:00:06.9]} 48. h5 {[%clk 0:01:26]} 48...
Kf5 {[%clk 0:00:04.5]} 49. g6 {[%clk 0:01:25.6]} 49... Kf6 {[%clk 0:00:04.2]}
50. Rf8+ {[%clk 0:01:25.2]} 50... Kg7 {[%clk 0:00:03]} 51. Rf7+ {[%clk
0:01:25.6]} 51... Kg8 {[%clk 0:00:02]} 52. h6 {[%clk 0:01:25.3]} 52... c4 {[%clk
0:00:02.1]} 53. h7+ {[%clk 0:01:25.4]} 53... Kh8 {[%clk 0:00:01.7]} 54. Rf8+
{[%clk 0:01:25.9]} 54... Kg7 {[%clk 0:00:02.2]} 55. h8=Q+ {[%clk 0:01:26.4]}
55... Kxg6 {[%clk 0:00:02.4]} 56. Rf6+ {[%clk 0:01:24.8]} 56... Kg5 {[%clk
0:00:02.4]} 57. Qh6# {[%clk 0:01:24.5]} 1-0

[Event "Late-Titled-Tuesday-Blitz-March-26-2024"]
[Site "Chess.com"]
[Date "2024.03.26"]
[Round "10"]
[White "sergiochess83"]
[Black "GHANDEEVAM2003"]
[Result "0-1"]
[WhiteElo "2996"]
[BlackElo "3058"]
[TimeControl "180+1"]
[EndTime "15:54:10 PDT"]
[Termination "GHANDEEVAM2003 won by resignation"]

1. d4 {[%clk 0:02:51.7]} 1... e6 {[%clk 0:02:59]} 2. e4 {[%clk 0:02:45.1]} 2...
d5 {[%clk 0:02:58.3]} 3. Nc3 {[%clk 0:02:44.4]} 3... Bb4 {[%clk 0:02:57.6]} 4.
e5 {[%clk 0:02:43.9]} 4... c5 {[%clk 0:02:57]} 5. a3 {[%clk 0:02:43.2]} 5...
Bxc3+ {[%clk 0:02:57.1]} 6. bxc3 {[%clk 0:02:44.1]} 6... Qa5 {[%clk 0:02:56.7]}
7. Bd2 {[%clk 0:02:43.5]} 7... Qa4 {[%clk 0:02:56.7]} 8. Qb1 {[%clk 0:02:41.4]}
8... c4 {[%clk 0:02:55.8]} 9. Qd1 {[%clk 0:02:40.4]} 9... Ne7 {[%clk 0:02:54.9]}
10. h4 {[%clk 0:02:38]} 10... Nbc6 {[%clk 0:02:53.4]} 11. h5 {[%clk 0:02:38]}
11... h6 {[%clk 0:02:53.2]} 12. g3 {[%clk 0:02:26.1]} 12... Bd7 {[%clk
0:02:51.6]} 13. Bh3 {[%clk 0:02:24.5]} 13... O-O-O {[%clk 0:02:50.9]} 14. Nf3
{[%clk 0:02:24.8]} 14... f6 {[%clk 0:02:48.8]} 15. exf6 {[%clk 0:02:15.8]} 15...
gxf6 {[%clk 0:02:49.7]} 16. O-O {[%clk 0:02:15.9]} 16... e5 {[%clk 0:02:45.7]}
17. Bxd7+ {[%clk 0:02:11.2]} 17... Rxd7 {[%clk 0:02:46.6]} 18. Re1 {[%clk
0:02:05.5]} 18... e4 {[%clk 0:02:22.9]} 19. Nh4 {[%clk 0:02:04.1]} 19... f5
{[%clk 0:02:12.4]} 20. Bf4 {[%clk 0:01:59.4]} 20... Nd8 {[%clk 0:02:12.2]} 21.
Be5 {[%clk 0:01:27.3]} 21... Rg8 {[%clk 0:02:10.9]} 22. Qd2 {[%clk 0:01:22.1]}
22... Qa6 {[%clk 0:01:55.7]} 23. Qf4 {[%clk 0:01:07.9]} 23... Rg4 {[%clk
0:01:52.8]} 24. Qe3 {[%clk 0:01:00.3]} 24... Nf7 {[%clk 0:01:51.9]} 25. Bf4
{[%clk 0:00:58.9]} 25... Qf6 {[%clk 0:01:50.3]} 26. Ng2 {[%clk 0:00:37.2]} 26...
Rd8 {[%clk 0:01:41.4]} 27. Rab1 {[%clk 0:00:35.7]} 27... Ng5 {[%clk 0:01:30.1]}
28. Bxg5 {[%clk 0:00:34.9]} 28... hxg5 {[%clk 0:01:31]} 29. Qe2 {[%clk
0:00:34.6]} 29... Qh6 {[%clk 0:01:31.3]} 30. Ne3 {[%clk 0:00:32.4]} 30... Qxh5
{[%clk 0:01:31]} 31. Nxg4 {[%clk 0:00:31.1]} 31... Rh8 {[%clk 0:01:11.4]} 32. f4
{[%clk 0:00:24.4]} 32... fxg4 {[%clk 0:01:11.6]} 33. Qg2 {[%clk 0:00:24.2]}
33... gxf4 {[%clk 0:01:10.4]} 34. gxf4 {[%clk 0:00:24.4]} 34... Ng6 {[%clk
0:01:09.9]} 35. Rf1 {[%clk 0:00:18.2]} 35... Nh4 {[%clk 0:01:09.1]} 36. Qg3
{[%clk 0:00:18.7]} 36... Nf5 {[%clk 0:01:07.7]} 37. Qg2 {[%clk 0:00:15.1]} 37...
Ne3 {[%clk 0:01:07.3]} 38. Qg3 {[%clk 0:00:13.8]} 38... Nf5 {[%clk 0:00:50.3]}
39. Qg2 {[%clk 0:00:14]} 39... g3 {[%clk 0:00:50.9]} 40. Rbe1 {[%clk 0:00:12.1]}
40... Qg4 {[%clk 0:00:50.4]} 41. Qe2 {[%clk 0:00:10.3]} 41... Qg6 {[%clk
0:00:38]} 42. Qg2 {[%clk 0:00:10.6]} 42... Rh2 {[%clk 0:00:37.1]} 0-1

[Event "Late-Titled-Tuesday-Blitz-March-26-2024"]
[Site "Chess.com"]
[Date "2024.03.26"]
[Round "10"]
[White "b_6"]
[Black "kai_nov"]
[Result "1-0"]
[WhiteElo "2471"]
[BlackElo "2333"]
[TimeControl "180+1"]
[EndTime "15:54:11 PDT"]
[Termination "b_6 won on time"]

1. d4 {[%clk 0:03:00.9]} 1... d5 {[%clk 0:02:57.4]} 2. c4 {[%clk 0:03:00.6]}
2... e6 {[%clk 0:02:57.1]} 3. Nc3 {[%clk 0:03:00.5]} 3... c6 {[%clk 0:02:57.2]}
4. e3 {[%clk 0:02:56.9]} 4... Nf6 {[%clk 0:02:56.4]} 5. Nf3 {[%clk 0:02:56.3]}
5... Nbd7 {[%clk 0:02:53.7]} 6. Qc2 {[%clk 0:02:56]} 6... Bd6 {[%clk 0:02:44.9]}
7. Bd3 {[%clk 0:02:50.6]} 7... dxc4 {[%clk 0:02:40.1]} 8. Bxc4 {[%clk
0:02:51.5]} 8... b5 {[%clk 0:02:40.3]} 9. Bd3 {[%clk 0:02:51.5]} 9... Bb7 {[%clk
0:02:34]} 10. O-O {[%clk 0:02:51.1]} 10... O-O {[%clk 0:02:27]} 11. a3 {[%clk
0:02:48.3]} 11... a5 {[%clk 0:02:20.2]} 12. Rd1 {[%clk 0:02:35]} 12... Qc7
{[%clk 0:02:12.7]} 13. Bd2 {[%clk 0:01:59.7]} 13... Rfc8 {[%clk 0:01:58.8]} 14.
Rac1 {[%clk 0:01:59.1]} 14... h6 {[%clk 0:01:48.1]} 15. Be1 {[%clk 0:01:56.8]}
15... e5 {[%clk 0:01:10.3]} 16. dxe5 {[%clk 0:01:48.4]} 16... Nxe5 {[%clk
0:01:11.2]} 17. Nxe5 {[%clk 0:01:35.4]} 17... Bxe5 {[%clk 0:01:12.1]} 18. g3
{[%clk 0:01:36.1]} 18... Qe7 {[%clk 0:01:01.2]} 19. Ne4 {[%clk 0:01:27]} 19...
Nxe4 {[%clk 0:00:53.3]} 20. Bxe4 {[%clk 0:01:27.9]} 20... Bxb2 {[%clk
0:00:46.7]} 21. Qxb2 {[%clk 0:01:04.7]} 21... Qxe4 {[%clk 0:00:45.5]} 22. Rd4
{[%clk 0:01:05.4]} 22... Qe7 {[%clk 0:00:18.3]} 23. Rg4 {[%clk 0:00:56.5]} 23...
f6 {[%clk 0:00:13.6]} 24. Bc3 {[%clk 0:00:54.6]} 24... Kh8 {[%clk 0:00:12.7]}
25. Rg6 {[%clk 0:00:47.7]} 25... c5 {[%clk 0:00:10.8]} 26. Rxh6+ {[%clk
0:00:38.7]} 26... Kg8 {[%clk 0:00:10.8]} 27. Rh4 {[%clk 0:00:37.6]} 27... b4
{[%clk 0:00:09.2]} 28. Bd2 {[%clk 0:00:31.9]} 28... Rd8 {[%clk 0:00:06.9]} 29.
Be1 {[%clk 0:00:25.4]} 29... Rac8 {[%clk 0:00:03.8]} 30. axb4 {[%clk 0:00:24.3]}
30... cxb4 {[%clk 0:00:03.3]} 31. Rxc8 {[%clk 0:00:21.6]} 31... Rxc8 {[%clk
0:00:04.2]} 32. Qa2+ {[%clk 0:00:20.8]} 32... Qf7 {[%clk 0:00:03.2]} 33. Rh8+
{[%clk 0:00:19.9]} 33... Kxh8 {[%clk 0:00:01.5]} 34. Qxf7 {[%clk 0:00:20.8]} 1-0

[Event "Late-Titled-Tuesday-Blitz-March-26-2024"]
[Site "Chess.com"]
[Date "2024.03.26"]
[Round "10"]
[White "a-z30"]
[Black "Slovak_fighter2000"]
[Result "0-1"]
[WhiteElo "2472"]
[BlackElo "2605"]
[TimeControl "180+1"]
[EndTime "15:54:12 PDT"]
[Termination "Slovak_fighter2000 won on time"]

1. d4 {[%clk 0:03:00.9]} 1... Nf6 {[%clk 0:02:59.2]} 2. c4 {[%clk 0:03:01.1]}
2... e6 {[%clk 0:03:00.1]} 3. Nc3 {[%clk 0:03:01.4]} 3... d5 {[%clk 0:02:59.9]}
4. Bg5 {[%clk 0:03:00.3]} 4... c6 {[%clk 0:02:58.8]} 5. e3 {[%clk 0:02:58.5]}
5... Nbd7 {[%clk 0:02:57.2]} 6. Nf3 {[%clk 0:02:58]} 6... Qa5 {[%clk 0:02:56.1]}
7. cxd5 {[%clk 0:02:51.5]} 7... Nxd5 {[%clk 0:02:50.4]} 8. Qd2 {[%clk
0:02:49.7]} 8... Bb4 {[%clk 0:02:47.6]} 9. Rc1 {[%clk 0:02:48]} 9... c5 {[%clk
0:02:38.2]} 10. Bc4 {[%clk 0:02:43.4]} 10... N7f6 {[%clk 0:02:30.9]} 11. Bxf6
{[%clk 0:02:29.3]} 11... Nxf6 {[%clk 0:02:25.3]} 12. dxc5 {[%clk 0:02:05.6]}
12... Ne4 {[%clk 0:02:19.7]} 13. Qd4 {[%clk 0:02:00.8]} 13... Bxc3+ {[%clk
0:02:11.4]} 14. bxc3 {[%clk 0:02:00.3]} 14... Nf6 {[%clk 0:02:11.7]} 15. Qd6
{[%clk 0:01:23.5]} 15... Ne4 {[%clk 0:02:06.5]} 16. Qe5 {[%clk 0:01:22.4]} 16...
Nf6 {[%clk 0:02:06]} 17. c6 {[%clk 0:01:16.6]} 17... Qxe5 {[%clk 0:02:02.7]} 18.
Nxe5 {[%clk 0:01:15.9]} 18... b6 {[%clk 0:02:02.3]} 19. Ke2 {[%clk 0:00:56.4]}
19... Ke7 {[%clk 0:01:56.8]} 20. Rhd1 {[%clk 0:00:55.6]} 20... Ne4 {[%clk
0:01:42]} 21. Bd3 {[%clk 0:00:31.6]} 21... Nc5 {[%clk 0:01:40.7]} 22. Bb5 {[%clk
0:00:19.5]} 22... f6 {[%clk 0:01:32.7]} 23. Nd7 {[%clk 0:00:17.7]} 23... Bxd7
{[%clk 0:01:31.6]} 24. cxd7 {[%clk 0:00:17.5]} 24... Rhd8 {[%clk 0:01:31.2]} 25.
Rd4 {[%clk 0:00:16]} 25... Nxd7 {[%clk 0:01:27.5]} 26. Rcd1 {[%clk 0:00:15.7]}
26... Nc5 {[%clk 0:01:27.3]} 27. Rxd8 {[%clk 0:00:15.6]} 27... Rxd8 {[%clk
0:01:28.2]} 28. Rxd8 {[%clk 0:00:15.9]} 28... Kxd8 {[%clk 0:01:29.1]} 29. f3
{[%clk 0:00:15.8]} 29... Ke7 {[%clk 0:01:28.5]} 30. Bd3 {[%clk 0:00:15]} 30...
h6 {[%clk 0:01:27.6]} 31. Bc2 {[%clk 0:00:15.1]} 31... Kd6 {[%clk 0:01:28]} 32.
h4 {[%clk 0:00:14.6]} 32... g5 {[%clk 0:01:27.4]} 33. hxg5 {[%clk 0:00:10.2]}
33... hxg5 {[%clk 0:01:28.3]} 34. g3 {[%clk 0:00:10.3]} 34... Nd7 {[%clk
0:01:21.8]} 35. f4 {[%clk 0:00:11.2]} 35... gxf4 {[%clk 0:01:14.6]} 36. exf4
{[%clk 0:00:11]} 36... f5 {[%clk 0:01:14.8]} 37. Kf3 {[%clk 0:00:10.4]} 37...
Nf6 {[%clk 0:01:14.8]} 38. Ke3 {[%clk 0:00:10.2]} 38... a5 {[%clk 0:01:02.1]}
39. Bb3 {[%clk 0:00:08.6]} 39... e5 {[%clk 0:01:01]} 40. fxe5+ {[%clk
0:00:06.1]} 40... Kxe5 {[%clk 0:01:01.9]} 41. Bf7 {[%clk 0:00:04.2]} 41... Ne4
{[%clk 0:01:00.9]} 42. Kd3 {[%clk 0:00:02.7]} 42... Nxg3 {[%clk 0:00:57.8]} 43.
Kc4 {[%clk 0:00:02.9]} 43... Ne4 {[%clk 0:00:58.3]} 44. a4 {[%clk 0:00:01.3]}
44... Nd6+ {[%clk 0:00:58.1]} 45. Kd3 {[%clk 0:00:01.2]} 45... Nxf7 {[%clk
0:00:59]} 0-1

[Event "Late-Titled-Tuesday-Blitz-March-26-2024"]
[Site "Chess.com"]
[Date "2024.03.26"]
[Round "10"]
[White "Zq1"]
[Black "dennisodessa"]
[Result "0-1"]
[WhiteElo "2616"]
[BlackElo "2545"]
[TimeControl "180+1"]
[EndTime "15:54:14 PDT"]
[Termination "dennisodessa won by resignation"]

1. d4 {[%clk 0:03:00.9]} 1... Nf6 {[%clk 0:02:44.8]} 2. c4 {[%clk 0:03:00.6]}
2... e6 {[%clk 0:02:45.1]} 3. Nf3 {[%clk 0:02:59.8]} 3... Bb4+ {[%clk
0:02:45.7]} 4. Bd2 {[%clk 0:02:59.2]} 4... a5 {[%clk 0:02:45.1]} 5. g3 {[%clk
0:02:58.4]} 5... b6 {[%clk 0:02:43.6]} 6. Bg2 {[%clk 0:02:58.1]} 6... Bb7 {[%clk
0:02:44.1]} 7. O-O {[%clk 0:02:57.1]} 7... O-O {[%clk 0:02:43.3]} 8. Bg5 {[%clk
0:02:55.8]} 8... Be7 {[%clk 0:02:43.2]} 9. Nc3 {[%clk 0:02:49.8]} 9... Ne4
{[%clk 0:02:42.6]} 10. Bxe7 {[%clk 0:02:46.5]} 10... Qxe7 {[%clk 0:02:43.5]} 11.
Qc2 {[%clk 0:02:44.9]} 11... Nxc3 {[%clk 0:02:43.9]} 12. Qxc3 {[%clk 0:02:45.1]}
12... d6 {[%clk 0:02:40.7]} 13. Rfe1 {[%clk 0:02:42.1]} 13... Be4 {[%clk
0:02:36.6]} 14. Bh3 {[%clk 0:02:40.8]} 14... Nd7 {[%clk 0:02:35]} 15. Nd2 {[%clk
0:02:40.3]} 15... Bb7 {[%clk 0:02:35.6]} 16. e4 {[%clk 0:02:39.5]} 16... e5
{[%clk 0:02:36.3]} 17. b3 {[%clk 0:02:27.3]} 17... Rfe8 {[%clk 0:02:20.9]} 18.
Rad1 {[%clk 0:02:16.2]} 18... Rad8 {[%clk 0:02:01.4]} 19. f3 {[%clk 0:02:08.5]}
19... exd4 {[%clk 0:01:51.3]} 20. Qxd4 {[%clk 0:02:07.9]} 20... Ne5 {[%clk
0:01:52]} 21. Bg2 {[%clk 0:02:03.5]} 21... Qf6 {[%clk 0:01:46.6]} 22. Qa1 {[%clk
0:01:28]} 22... Qh6 {[%clk 0:01:28.5]} 23. Nf1 {[%clk 0:01:20.3]} 23... Qh5
{[%clk 0:01:12]} 24. Qc3 {[%clk 0:01:18.3]} 24... f5 {[%clk 0:01:10.7]} 25. f4
{[%clk 0:01:05.9]} 25... Ng4 {[%clk 0:01:10.7]} 26. e5 {[%clk 0:00:41.1]} 26...
Bxg2 {[%clk 0:01:11.6]} 27. Kxg2 {[%clk 0:00:40.2]} 27... dxe5 {[%clk
0:01:06.4]} 28. Rxd8 {[%clk 0:00:38.6]} 28... Rxd8 {[%clk 0:01:03.9]} 29. fxe5
{[%clk 0:00:21.7]} 29... f4 {[%clk 0:00:30.7]} 30. gxf4 {[%clk 0:00:12.9]} 30...
Qg6 {[%clk 0:00:30.3]} 31. Qg3 {[%clk 0:00:12.1]} 31... Rd3 {[%clk 0:00:30.6]}
32. Ne3 {[%clk 0:00:10.1]} 32... Nxe3+ {[%clk 0:00:30.4]} 33. Kf2 {[%clk
0:00:04]} 33... Nd1+ {[%clk 0:00:21.2]} 34. Kg2 {[%clk 0:00:02.6]} 34... Rxg3+
{[%clk 0:00:21]} 0-1